fUSD/lending_fUSD_20240802
["ID","MTS","AMOUNT","RATE_DAILY","PERIOD"]
[333915886,1722628240343,-500.0,0.00016438,2]
[333915887,1722628240352,-531.68,0.00016438,2]
[333915888,1722628240362,-500.0,0.00016438,2]
[333915889,1722628240371,-500.0,0.00016438,2]
[333915890,1722628240381,-500.0,0.00016438,2]
[333915891,1722628240391,-1365.71,0.00016438,2]
[333915892,1722628240400,-400.0,0.00016438,2]
[333915893,1722628240413,-1346.11,0.00016438,2]
[333915894,1722628240424,-500.0,0.00016438,2]
[333915895,1722628240433,-300.68724945,0.00016438,2]
[333915896,1722628240443,-563.13,0.00016438,2]
[333915897,1722628240453,-756.22,0.00016438,2]
[333915898,1722628240463,-500.0,0.00016438,2]
[333915899,1722628240472,-1502.32,0.00016438,2]
[333915900,1722628240482,-1024.6,0.00016438,2]
[333915901,1722628240492,-2181.14,0.00016438,2]
[333915902,1722628240505,-683.46,0.00016438,2]
[333915903,1722628240515,-500.0,0.00016438,2]
[333915904,1722628240525,-1465.82,0.00016438,2]
[333915905,1722628240534,-1322.54,0.00016438,2]
[333915906,1722628240545,-500.0,0.00016438,2]
[333915907,1722628240554,-633.36,0.00016438,2]
[333915908,1722628240563,-500.0,0.00016438,2]
[333915909,1722628240573,-500.0,0.00016438,2]
[333915910,1722628240584,-500.0,0.00016438,2]
[333915911,1722628240593,-1201.25,0.00016438,2]
[333915912,1722628240602,-842.28,0.00016438,2]
[333915913,1722628240611,-539.85,0.00016438,2]
[333915914,1722628240621,-1262.81,0.00016438,2]
[333915915,1722628240630,-868.37,0.00016438,2]
[333915916,1722628240640,-847.68,0.00016438,2]
[333915917,1722628240650,-593.79,0.00016438,2]
[333915918,1722628240661,-500.0,0.00016438,2]
[333915919,1722628240671,-1554.91,0.00016438,2]
[333915920,1722628240681,-500.0,0.00016438,2]
[333915921,1722628240690,-2942.1,0.00016438,2]
[333915922,1722628240699,-1287.77,0.00016438,2]
[333915923,1722628240709,-500.0,0.00016438,2]
[333915924,1722628240718,-500.0,0.00016438,2]
[333915925,1722628240727,-1986.13,0.00016438,2]
[333915926,1722628240737,-555.03,0.00016438,2]
[333915927,1722628240746,-500.0,0.00016438,2]
[333915928,1722628240755,-1296.73,0.00016438,2]
[333915929,1722628240764,-500.0,0.00016438,2]
[333915930,1722628240773,-500.0,0.00016438,2]
[333915931,1722628240782,-500.0,0.00016438,2]
[333915932,1722628240792,-500.0,0.00016438,2]
[333915933,1722628240801,-852.54,0.00016438,2]
[333915934,1722628240810,-525.07,0.00016438,2]
[333915935,1722628240820,-525.06,0.00016438,2]
[333915936,1722628240830,-1133.56,0.00016438,2]
[333915937,1722628240839,-991.6,0.00016438,2]
[333915938,1722628240849,-1465.97,0.00016438,2]
[333915939,1722628240858,-500.0,0.00016438,2]
[333915940,1722628240868,-500.0,0.00016438,2]
[333915941,1722628240877,-500.0,0.00016438,2]
[333915942,1722628240886,-873.02,0.00016438,2]
[333915943,1722628240895,-500.0,0.00016438,2]
[333915944,1722628240906,-976.56,0.00016438,2]
[333915945,1722628240917,-1450.9,0.00016438,2]
[333915946,1722628240926,-500.0,0.00016438,2]
[333915947,1722628240936,-1634.09,0.00016438,2]
[333915948,1722628240945,-500.0,0.00016438,2]
[333915949,1722628240954,-500.0,0.00016438,2]
[333915950,1722628240964,-1492.31,0.00016438,2]
[333915951,1722628240973,-500.0,0.00016438,2]
[333915952,1722628240983,-628.52,0.00016438,2]
[333915953,1722628240992,-528.07,0.00016438,2]
[333915954,1722628241002,-500.0,0.00016438,2]
[333915955,1722628241011,-1530.15,0.00016438,2]
[333915956,1722628241021,-500.0,0.00016438,2]
[333915957,1722628241031,-498.10698236,0.00016438,2]
[333915958,1722628242132,-1594.69301764,0.00016438,2]
[333915959,1722628242142,-500.0,0.00016438,2]
[333915960,1722628242151,-744.25,0.00016438,2]
[333915961,1722628242163,-500.0,0.00016438,2]
[333915962,1722628242172,-1423.66,0.00016438,2]
[333915963,1722628242182,-500.0,0.00016438,2]
[333915964,1722628242192,-500.0,0.00016438,2]
[333915965,1722628242201,-292.99698207,0.00016438,2]
[333915966,1722628242214,-478.04301793,0.00016438,2]
[333915967,1722628242224,-500.0,0.00016438,2]
[333915968,1722628242233,-648.08,0.00016438,2]
[333915969,1722628242243,-426.636965,0.00016438,2]
[333915970,1722628242252,-1057.15,0.00016438,2]
[333915971,1722628242262,-500.0,0.00016438,2]
[333915972,1722628242271,-1669.73,0.00016438,2]
[333915973,1722628242281,-1336.11434107,0.00016438,2]
[333915974,1722628242293,-328.92787868,0.00016438,2]
[333915975,1722628242304,-2168.92778025,0.00016438,2]
[333915976,1722628242314,-811.01,0.00016438,2]
[333915977,1722628242323,-1888.96,0.00016438,2]
[333915978,1722628242333,-520.49,0.00016438,2]
[333915979,1722628242342,-500.0,0.00016438,2]
[333915980,1722628242352,-2509.07,0.00016438,2]
[333915981,1722628242361,-500.0,0.00016438,2]
[333915982,1722628242371,-197.542807,0.00016438,2]
[333915983,1722628242380,-500.0,0.00016438,2]
[333915984,1722628242389,-1898.99941275,0.00016438,2]
[333915985,1722628242401,-955.27057878,0.00016438,2]
[333915986,1722628242417,-67.86000847,0.00016438,2]
[333915987,1722628242426,-476.71763062,0.00016438,2]
[333915988,1722628242439,-94.93236938,0.00016438,2]
[333915989,1722628242448,-525.06763062,0.00016438,2]
[333915990,1722628242459,-500.73236938,0.00016438,2]
[333915991,1722628242468,-500.0,0.00016438,2]
[333915992,1722628242478,-234.74407062,0.00016438,2]
[333915993,1722628242490,-265.25592938,0.00016438,2]
[333915994,1722628242504,-621.88,0.00016438,2]
[333915995,1722628242514,-263.97212376,0.00016438,2]
[333916026,1722628243344,-236.02787624,0.00016438,2]
[333916028,1722628243353,-420.57869112,0.00016438,2]
[333916030,1722628243366,-79.42130888,0.00016438,2]
[333916031,1722628243375,-1823.46,0.00016438,2]
[333916032,1722628243384,-531.29,0.00016438,2]
[333916033,1722628243393,-500.0,0.00016438,2]
[333916034,1722628243403,-992.48,0.00016438,2]
[333916036,1722628243416,-754.94,0.00016438,2]
[333916038,1722628243426,-814.75,0.00016438,2]
[333916039,1722628243435,-941.34,0.00016438,2]
[333916040,1722628243445,-1246.26,0.00016438,2]
[333916041,1722628243454,-746.18,0.00016438,2]
[333916042,1722628243464,-1440.08,0.00016438,2]
[333916043,1722628243473,-1840.48,0.00016438,2]
[333916044,1722628243482,-500.0,0.00016438,2]
[333916045,1722628243492,-1789.01,0.00016438,2]
[333916046,1722628243502,-500.0,0.00016438,2]
[333916047,1722628243522,-671.4,0.00016438,2]
[333916048,1722628243534,-609.9,0.00016438,2]
[333916049,1722628243544,-1589.68,0.00016438,2]
[333916050,1722628243553,-500.0,0.00016438,2]
[333916051,1722628243564,-500.0,0.00016438,2]
[333916052,1722628243573,-519.96384754,0.00016438,2]
[333916053,1722628243585,-500.0,0.00016438,2]
[333916054,1722628243594,-500.0,0.00016438,2]
[333916055,1722628243604,-643.38,0.00016438,2]
[333916056,1722628243613,-1602.87,0.00016438,2]
[333916057,1722628243623,-500.0,0.00016438,2]
[333916058,1722628243632,-500.0,0.00016438,2]
[333916059,1722628243642,-500.0,0.00016438,2]
[333916060,1722628243651,-500.0,0.00016438,2]
[333916061,1722628243662,-1366.07,0.00016438,2]
[333916062,1722628243672,-500.0,0.00016438,2]
[333916063,1722628243681,-500.0,0.00016438,2]
[333916064,1722628243691,-1545.49,0.00016438,2]
[333916065,1722628243700,-616.99,0.00016438,2]
[333916066,1722628243709,-2000.0,0.00016438,2]
[333916067,1722628243719,-2532.18,0.00016438,2]
[333916068,1722628243729,-2096.74,0.00016438,2]
[333916069,1722628243739,-500.0,0.00016438,2]
[333916070,1722628243749,-500.0,0.00016438,2]
[333916071,1722628243758,-200.0,0.00016438,2]
[333916072,1722628243767,-821.84,0.00016438,2]
[333916073,1722628243777,-500.0,0.00016438,2]
[333916074,1722628243786,-2113.41,0.00016438,2]
[333916075,1722628243796,-500.0,0.00016438,2]
[333916076,1722628243805,-500.0,0.00016438,2]
[333916077,1722628243815,-500.0,0.00016438,2]
[333916078,1722628243824,-500.0,0.00016438,2]
[333916079,1722628243833,-1394.28,0.00016438,2]
[333916080,1722628243843,-571.19,0.00016438,2]
[333916081,1722628243852,-1424.09,0.00016438,2]
[333916082,1722628243862,-500.0,0.00016438,2]
[333916083,1722628243871,-500.0,0.00016438,2]
[333916084,1722628243880,-512.35,0.00016438,2]
[333916085,1722628243889,-829.22,0.00016438,2]
[333916086,1722628243899,-500.0,0.00016438,2]
[333916087,1722628243909,-618.65,0.00016438,2]
[333916088,1722628243919,-500.0,0.00016438,2]
[333916089,1722628243928,-1981.3,0.00016438,2]
[333916090,1722628243937,-500.0,0.00016438,2]
[333916091,1722628243946,-500.0,0.00016438,2]
[333916092,1722628243955,-952.65,0.00016438,2]
[333916093,1722628243964,-2034.71,0.00016438,2]
[333916094,1722628243974,-1304.46,0.00016438,2]
[333916095,1722628243984,-626.96,0.00016438,2]
[333916096,1722628243993,-500.0,0.00016438,2]
[333916097,1722628244002,-957.93,0.00016438,2]
[333916098,1722628244011,-500.0,0.00016438,2]
[333916099,1722628244021,-952.81,0.00016438,2]
[333916100,1722628244030,-500.0,0.00016438,2]
[333916101,1722628244039,-500.0,0.00016438,2]
[333916102,1722628244049,-1206.17,0.00016438,2]
[333916103,1722628244059,-500.0,0.00016438,2]
[333916104,1722628244068,-500.0,0.00016438,2]
[333916105,1722628244077,-500.0,0.00016438,2]
[333916106,1722628244087,-1523.5,0.00016438,2]
[333916107,1722628244096,-2120.56,0.00016438,2]
[333916108,1722628244106,-2028.34,0.00016438,2]
[333916109,1722628244115,-826.78,0.00016438,2]
[333916110,1722628244124,-500.0,0.00016438,2]
[333916111,1722628244133,-500.0,0.00016438,2]
[333916112,1722628244143,-3818.93,0.00016438,2]
[333916113,1722628244152,-1419.9,0.00016438,2]
[333916114,1722628244162,-731.1,0.00016438,2]
[333916115,1722628244171,-500.0,0.00016438,2]
[333916116,1722628244181,-623.66,0.00016438,2]
[333916117,1722628244191,-1620.09,0.00016438,2]
[333916118,1722628244200,-500.0,0.00016438,2]
[333916119,1722628244209,-500.0,0.00016438,2]
[333916120,1722628244218,-709.26,0.00016438,2]
[333916121,1722628244227,-500.0,0.00016438,2]
[333916122,1722628244236,-500.0,0.00016438,2]
[333916123,1722628244246,-952.32,0.00016438,2]
[333916124,1722628244255,-500.0,0.00016438,2]
[333916125,1722628244264,-854.95,0.00016438,2]
[333916126,1722628244273,-840.43,0.00016438,2]
[333916127,1722628244282,-500.0,0.00016438,2]
[333916128,1722628244291,-1099.33,0.00016438,2]
[333916129,1722628244300,-500.0,0.00016438,2]
[333916130,1722628244310,-500.0,0.00016438,2]
[333916131,1722628244319,-500.0,0.00016438,2]
[333916132,1722628244328,-535.21,0.00016438,2]
[333916133,1722628244338,-1498.97,0.00016438,2]
[333916134,1722628244347,-554.37,0.00016438,2]
[333916135,1722628244357,-500.0,0.00016438,2]
[333916136,1722628244366,-516.8241857,0.00016438,2]
[333916137,1722628244375,-792.49,0.00016438,2]
[333916138,1722628244385,-500.0,0.00016438,2]
[333916139,1722628244394,-722.24,0.00016438,2]
[333916140,1722628244403,-500.0,0.00016438,2]
[333916141,1722628244413,-500.0,0.00016438,2]
[333916142,1722628244422,-500.0,0.00016438,2]
[333916143,1722628244431,-628.54,0.00016438,2]
[333916144,1722628244440,-886.83,0.00016438,2]
[333916145,1722628244450,-734.33,0.00016438,2]
[333916146,1722628244459,-1672.27,0.00016438,2]
[333916147,1722628244468,-500.0,0.00016438,2]
[333916148,1722628244478,-500.0,0.00016438,2]
[333916149,1722628244487,-1661.69,0.00016438,2]
[333916150,1722628244498,-4399.52,0.00016438,2]
[333916151,1722628244510,-872.52,0.00016438,2]
[333916152,1722628244519,-500.0,0.00016438,2]
[333916153,1722628244528,-1020.27,0.00016438,2]
[333916154,1722628244539,-1064.01,0.00016438,2]
[333916155,1722628244548,-500.0,0.00016438,2]
[333916156,1722628244558,-526.08032373,0.00016438,2]
[333916157,1722628244567,-500.0,0.00016438,2]
[333916158,1722628244577,-500.0,0.00016438,2]
[333916159,1722628244587,-658.66,0.00016438,2]
[333916160,1722628244596,-2123.14,0.00016438,2]
[333916161,1722628244606,-500.0,0.00016438,2]
[333916162,1722628244615,-619.35,0.00016438,2]
[333916163,1722628244624,-2339.55,0.00016438,2]
[333916164,1722628244633,-3452.91,0.00016438,2]
[333916165,1722628244642,-500.0,0.00016438,2]
[333916166,1722628244651,-809.45,0.00016438,2]
[333916167,1722628244662,-500.0,0.00016438,2]
[333916168,1722628244672,-500.0,0.00016438,2]
[333916169,1722628244681,-500.0,0.00016438,2]
[333916170,1722628244690,-1107.2,0.00016438,2]
[333916171,1722628244699,-2475.15,0.00016438,2]
[333916172,1722628244708,-1732.4,0.00016438,2]
[333916173,1722628244717,-500.0,0.00016438,2]
[333916174,1722628244727,-2680.85,0.00016438,2]
[333916175,1722628244736,-762.08,0.00016438,2]
[333916176,1722628244746,-3711.52,0.00016438,2]
[333916177,1722628244755,-500.0,0.00016438,2]
[333916178,1722628244765,-3581.17,0.00016438,2]
[333916179,1722628244774,-434.99917657,0.00016438,2]
[333916180,1722628244783,-1549.63,0.00016438,2]
[333916181,1722628244792,-2297.17,0.00016438,2]
[333916182,1722628244802,-500.0,0.00016438,2]
[333916183,1722628244811,-565.26,0.00016438,2]
[333916184,1722628244820,-500.0,0.00016438,2]
[333916185,1722628244829,-689.08,0.00016438,2]
[333916186,1722628244838,-3196.04,0.00016438,2]
[333916187,1722628244847,-500.0,0.00016438,2]
[333916188,1722628244857,-995.4,0.00016438,2]
[333916189,1722628244866,-1240.86,0.00016438,2]
[333916190,1722628244875,-500.0,0.00016438,2]
[333916191,1722628244884,-2065.51,0.00016438,2]
[333916192,1722628244894,-510.4,0.00016438,2]
[333916193,1722628244903,-687.28,0.00016438,2]
[333916194,1722628244913,-589.22,0.00016438,2]
[333916195,1722628244923,-699.07,0.00016438,2]
[333916196,1722628244931,-615.28,0.00016438,2]
[333916197,1722628244941,-584.44,0.00016438,2]
[333916198,1722628244951,-2593.73,0.00016438,2]
[333916199,1722628244959,-500.0,0.00016438,2]
[333916200,1722628244968,-2320.73,0.00016438,2]
[333916201,1722628244978,-500.0,0.00016438,2]
[333916202,1722628244987,-1507.37,0.00016438,2]
[333916203,1722628244996,-1303.52,0.00016438,2]
[333916204,1722628245006,-1982.39,0.00016438,2]
[333916205,1722628245016,-1002.76,0.00016438,2]
[333916206,1722628245025,-500.0,0.00016438,2]
[333916207,1722628245034,-500.0,0.00016438,2]
[333916208,1722628245043,-1009.15,0.00016438,2]
[333916209,1722628245052,-603.19,0.00016438,2]
[333916210,1722628245062,-500.0,0.00016438,2]
[333916211,1722628245071,-500.0,0.00016438,2]
[333916212,1722628245080,-500.0,0.00016438,2]
[333916213,1722628245090,-500.0,0.00016438,2]
[333916214,1722628245099,-500.0,0.00016438,2]
[333916215,1722628245108,-3944.41,0.00016438,2]
[333916216,1722628245117,-2071.32,0.00016438,2]
[333916217,1722628245126,-1196.62,0.00016438,2]
[333916218,1722628245136,-612.57,0.00016438,2]
[333916219,1722628245146,-2475.53,0.00016438,2]
[333916220,1722628245155,-500.0,0.00016438,2]
[333916221,1722628245165,-259.60219502,0.00016438,2]
[333916222,1722628245175,-500.0,0.00016438,2]
[333916223,1722628245184,-500.0,0.00016438,2]
[333916224,1722628245193,-2173.67,0.00016438,2]
[333916225,1722628245203,-574.88,0.00016438,2]
[333916226,1722628245212,-682.31,0.00016438,2]
[333916227,1722628245221,-785.14,0.00016438,2]
[333916228,1722628245231,-500.0,0.00016438,2]
[333916229,1722628245240,-1013.8,0.00016438,2]
[333916230,1722628245249,-3057.54896277,0.00016438,2]
[333916231,1722628245276,-60.54103723,0.00016438,2]
[333916232,1722628245286,-500.0,0.00016438,2]
[333916233,1722628245295,-500.0,0.00016438,2]
[333916234,1722628245304,-3036.86,0.00016438,2]
[333916235,1722628245314,-500.0,0.00016438,2]
[333916236,1722628245322,-500.0,0.00016438,2]
[333916237,1722628245331,-2035.48,0.00016438,2]
[333916238,1722628245340,-500.0,0.00016438,2]
[333916239,1722628245350,-500.0,0.00016438,2]
[333916240,1722628245359,-1791.01,0.00016438,2]
[333916241,1722628245368,-1521.08,0.00016438,2]
[333916242,1722628245378,-500.0,0.00016438,2]
[333916243,1722628245388,-1024.73,0.00016438,2]
[333916244,1722628245398,-2.762805,0.00016438,2]
[333916245,1722628245424,-497.237195,0.00016438,2]
[333916246,1722628245434,-443.77844151,0.00016438,2]
[333916247,1722628245445,-626.9102,0.00016438,2]
[333916248,1722628245459,-329.329,0.00016438,2]
[333916249,1722628245470,-574.92905729,0.00016438,2]
[333916250,1722628245481,-292.0133012,0.00016438,2]
[333916251,1722628245493,-566.9,0.00016438,2]
[333916252,1722628245505,-1580.24,0.00016438,2]
[333916253,1722628245516,-1696.61,0.00016438,2]
[333916254,1722628245536,-500.0,0.00016438,2]
[333916255,1722628245547,-500.0,0.00016438,2]
[333916256,1722628245558,-1000.0,0.00016438,2]
[333916257,1722628245567,-965.97,0.00016438,2]
[333916258,1722628245577,-500.0,0.00016438,2]
[333916259,1722628245587,-1037.6,0.00016438,2]
[333916260,1722628245596,-896.94,0.00016438,2]
[333916261,1722628245605,-1514.07,0.00016438,2]
[333916262,1722628245614,-2918.01,0.00016438,2]
[333916263,1722628245624,-823.5,0.00016438,2]
[333916264,1722628245633,-2079.45,0.00016438,2]
[333916265,1722628245642,-851.5,0.00016438,2]
[333916266,1722628245651,-1413.68,0.00016438,2]
[333916267,1722628245662,-500.0,0.00016438,2]
[333916268,1722628245671,-2425.84,0.00016438,2]
[333916269,1722628245681,-500.0,0.00016438,2]
[333916270,1722628245691,-500.0,0.00016438,2]
[333916271,1722628245700,-852.25,0.00016438,2]
[333916272,1722628245709,-500.0,0.00016438,2]
[333916273,1722628245718,-2120.67,0.00016438,2]
[333916274,1722628245727,-934.13,0.00016438,2]
[333916275,1722628245736,-500.0,0.00016438,2]
[333916276,1722628245746,-530.76,0.00016438,2]
[333916277,1722628245755,-1095.88,0.00016438,2]
[333916278,1722628245765,-863.09,0.00016438,2]
[333916279,1722628245775,-500.0,0.00016438,2]
[333916280,1722628245784,-500.0,0.00016438,2]
[333916282,1722628245794,-500.0,0.00016438,2]
[333916284,1722628245803,-500.0,0.00016438,2]
[333916286,1722628245813,-2552.53,0.00016438,2]
[333916288,1722628245822,-500.0,0.00016438,2]
[333916290,1722628245832,-500.0,0.00016438,2]
[333916292,1722628245841,-339.99700279,0.00016438,2]
[333916294,1722628245860,-158.70916783,0.00016438,2]
[333916296,1722628245869,-111.47815551,0.00016438,2]
[333916301,1722628245905,-2391.57184449,0.00016438,2]
[333916303,1722628245916,-2546.14,0.00016438,2]
[333916305,1722628245927,-891.09,0.00016438,2]
[333916307,1722628245936,-500.0,0.00016438,2]
[333916309,1722628245946,-500.0,0.00016438,2]
[333916311,1722628245955,-540.7,0.00016438,2]
[333916313,1722628245965,-500.0,0.00016438,2]
[333916315,1722628245974,-500.0,0.00016438,2]
[333916317,1722628245983,-1035.5,0.00016438,2]
[333916318,1722628245993,-1199.66,0.00016438,2]
[333916319,1722628246003,-1166.53,0.00016438,2]
[333916320,1722628246012,-1880.46,0.00016438,2]
[333916321,1722628246022,-2016.05,0.00016438,2]
[333916322,1722628246031,-706.65,0.00016438,2]
[333916323,1722628246041,-2602.94,0.00016438,2]
[333916324,1722628246051,-500.0,0.00016438,2]
[333916326,1722628246062,-500.0,0.00016438,2]
[333916328,1722628246073,-500.0,0.00016438,2]
[333916329,1722628246083,-500.0,0.00016438,2]
[333916330,1722628246096,-500.0,0.00016438,2]
[333916331,1722628246114,-625.62,0.00016438,2]
[333916332,1722628246124,-1783.33,0.00016438,2]
[333916333,1722628246133,-359.13647375,0.00016438,2]
[333916334,1722628246143,-500.0,0.00016438,2]
[333916336,1722628246152,-500.0,0.00016438,2]
[333916337,1722628246162,-1803.84,0.00016438,2]
[333916338,1722628246171,-826.3,0.00016438,2]
[333916339,1722628246181,-500.0,0.00016438,2]
[333916340,1722628246190,-2967.21,0.00016438,2]
[333916341,1722628246200,-1190.5,0.00016438,2]
[333916342,1722628246210,-1287.36,0.00016438,2]
[333916343,1722628246220,-500.0,0.00016438,2]
[333916344,1722628246232,-1730.81,0.00016438,2]
[333916345,1722628246242,-1335.89,0.00016438,2]
[333916346,1722628246252,-1588.94,0.00016438,2]
[333916347,1722628246262,-2301.89,0.00016438,2]
[333916348,1722628246274,-767.7,0.00016438,2]
[333916349,1722628246285,-2809.04,0.00016438,2]
[333916350,1722628246295,-910.49,0.00016438,2]
[333916351,1722628246305,-800.22,0.00016438,2]
[333916352,1722628246315,-500.0,0.00016438,2]
[333916353,1722628246325,-908.68,0.00016438,2]
[333916354,1722628246334,-1359.59,0.00016438,2]
[333916355,1722628246343,-3466.17,0.00016438,2]
[333916356,1722628246352,-500.0,0.00016438,2]
[333916357,1722628246361,-500.0,0.00016438,2]
[333916358,1722628246371,-911.63,0.00016438,2]
[333916359,1722628246380,-500.0,0.00016438,2]
[333916360,1722628246389,-994.53,0.00016438,2]
[333916361,1722628246398,-478.3315598,0.00016438,2]
[333916362,1722628246429,-1121.2684402,0.00016438,2]
[333916363,1722628246439,-279.31453792,0.00016438,2]
[333916364,1722628246448,-744.84,0.00016438,2]
[333916365,1722628246458,-725.18,0.00016438,2]
[333916366,1722628246467,-503.8,0.00016438,2]
[333916367,1722628246476,-956.75,0.00016438,2]
[333916368,1722628246485,-663.07,0.00016438,2]
[333916369,1722628246495,-500.0,0.00016438,2]
[333916370,1722628246506,-532.36,0.00016438,2]
[333916371,1722628246516,-500.0,0.00016438,2]
[333916372,1722628246525,-500.0,0.00016438,2]
[333916373,1722628246535,-500.0,0.00016438,2]
[333916374,1722628246545,-968.27,0.00016438,2]
[333916375,1722628246554,-500.0,0.00016438,2]
[333916376,1722628246564,-1558.75,0.00016438,2]
[333916377,1722628246573,-500.0,0.00016438,2]
[333916378,1722628246583,-500.0,0.00016438,2]
[333916379,1722628246592,-3707.66,0.00016438,2]
[333916380,1722628246602,-500.0,0.00016438,2]
[333916381,1722628246611,-981.78,0.00016438,2]
[333916382,1722628246620,-675.13,0.00016438,2]
[333916383,1722628246629,-500.0,0.00016438,2]
[333916384,1722628246638,-1586.87,0.00016438,2]
[333916385,1722628246648,-1170.69,0.00016438,2]
[333916386,1722628246658,-1458.48,0.00016438,2]
[333916387,1722628246668,-514.55,0.00016438,2]
[333916388,1722628246678,-1660.82,0.00016438,2]
[333916389,1722628246687,-1778.71,0.00016438,2]
[333916390,1722628246696,-500.0,0.00016438,2]
[333916391,1722628246706,-1065.4,0.00016438,2]
[333916392,1722628246715,-1669.42,0.00016438,2]
[333916393,1722628246724,-500.0,0.00016438,2]
[333916394,1722628246734,-1256.33,0.00016438,2]
[333916395,1722628246744,-1935.94,0.00016438,2]
[333916396,1722628246753,-1535.02,0.00016438,2]
[333916397,1722628246763,-150.0,0.00016438,2]
[333916398,1722628246772,-973.38,0.00016438,2]
[333916399,1722628246781,-510.01,0.00016438,2]
[333916400,1722628246790,-962.81,0.00016438,2]
[333916401,1722628246799,-724.95,0.00016438,2]
[333916402,1722628246808,-2673.57,0.00016438,2]
[333916403,1722628246822,-500.0,0.00016438,2]
[333916404,1722628246836,-666.39,0.00016438,2]
[333916405,1722628246849,-500.0,0.00016438,2]
[333916406,1722628246862,-1548.35,0.00016438,2]
[333916407,1722628246875,-500.0,0.00016438,2]
[333916408,1722628246888,-2140.78,0.00016438,2]
[333916409,1722628246899,-500.0,0.00016438,2]
[333916410,1722628246910,-642.8,0.00016438,2]
[333916411,1722628246926,-1145.19,0.00016438,2]
[333916412,1722628246941,-737.16,0.00016438,2]
[333916413,1722628246953,-500.0,0.00016438,2]
[333916414,1722628246967,-513.48747486,0.00016438,2]
[333916421,1722628248008,-1383.95848256,0.00016438,2]
[333916422,1722628248022,-451.00793256,0.00016438,2]
[333916423,1722628248036,-45.91611002,0.00016438,2]
[333916424,1722628248048,-2809.57,0.00016438,2]
[333916425,1722628248059,-500.0,0.00016438,2]
[333916426,1722628248071,-1453.14,0.00016438,2]
[333916427,1722628248082,-500.0,0.00016438,2]
[333916428,1722628248093,-500.0,0.00016438,2]
[333916429,1722628248104,-552.34,0.00016438,2]
[333916430,1722628248115,-500.0,0.00016438,2]
[333916431,1722628248126,-806.55,0.00016438,2]
[333916432,1722628248137,-500.0,0.00016438,2]
[333916433,1722628248148,-893.7,0.00016438,2]
[333916434,1722628248160,-1163.22,0.00016438,2]
[333916435,1722628248172,-500.0,0.00016438,2]
[333916436,1722628248184,-500.0,0.00016438,2]
[333916437,1722628248195,-530.43,0.00016438,2]
[333916438,1722628248207,-827.91,0.00016438,2]
[333916439,1722628248217,-834.26,0.00016438,2]
[333916440,1722628248228,-2370.93,0.00016438,2]
[333916441,1722628248239,-500.0,0.00016438,2]
[333916442,1722628248250,-1143.2,0.00016438,2]
[333916443,1722628248261,-1599.33,0.00016438,2]
[333916444,1722628248272,-867.48,0.00016438,2]
[333916445,1722628248283,-500.0,0.00016438,2]
[333916446,1722628248295,-2913.4,0.00016438,2]
[333916447,1722628248307,-500.0,0.00016438,2]
[333916448,1722628248318,-2777.94,0.00016438,2]